Cogmind - Beta 16 @@@ ROGUE MODE // 2026.01.02 @ 13:53:06 Player: PE-P51 Result: Destroyed by G-34 Mercenary with Small Laser Performance ------------- Evolutions (0) 0 Regions Visited (4) 800 Robots Destroyed (39) 195 Value Destroyed (1017) 1017 Prototype IDs (1) 20 Alien Tech Used (0) 0 Bonus (60) 60 TOTAL SCORE: 2092 Bonus ------- Follower Combat Kills 60 Cogmind --------- Core Integrity 0/250 Matter 218/300 Energy 247/265 System Corruption 1% Temperature Hot (215) Movement Treading (320) Ox2 Location -9/Mines Parts ------- > --- POWER (1) -------- Improved Ion Engine > --- PROPULSION (2) --- Light Treads Carbon-fiber Leg > --- UTILITY (2) ------ High-capacity Storage Unit Light Armor Plating > --- WEAPON (2) ------- Beam Cannon Rocket Launcher > --- INVENTORY (20) --- Ion Engine Light Nuclear Core Light Angular Momentum Engine Light Treads Aluminum Leg Experimental Sensor Array Improved Terrain Scanner Light Cannon Grenade Launcher Hammer Katana Heavy Explosive Trap Heavy Explosive Trap Heavy Explosive Trap Heavy Explosive Trap Peak State ------------ > --- POWER ------------ Light Nuclear Core > --- PROPULSION ------- Aluminum Leg Carbon-fiber Leg > --- UTILITY ---------- Large Storage Unit Experimental Sensor Array > --- WEAPON ----------- Beam Cannon Beam Cannon > --- INVENTORY -------- Ion Engine Ion Engine Light Ion Engine Light Angular Momentum Engine Light Treads Light Treads Improved Heat Sink High-capacity Storage Unit Improved Terrain Scanner Light Armor Plating Beam Cannon Light Assault Rifle Light Cannon Grenade Launcher Grenade Launcher [Rating: 21] Favorites ----------- Power Light Nuclear Core Engine Ion Engine Power Core Light Nuclear Core Propulsion Aluminum Leg Treads Light Treads Leg Aluminum Leg Utility Improved Heat Sink Device Improved Heat Sink Storage Large Storage Unit Protection Light Armor Plating Weapon Beam Cannon Energy Gun Small Laser Energy Cannon Beam Cannon Ballistic Gun Light Assault Rifle Ballistic Cannon Light Cannon Launcher Grenade Launcher Build | -11 -10 -10 -10 -9 ------- Run | Yrd Mat Min Exi Min Slots Evolved . | . . . . . Power . | . . . . . Propulsion . | . . . . . Utility . | . . . . . Weapon . | . . . . . Parts Attached 23 | . 11 3 . 9 Power 5 | . 2 2 . 1 Engine 4 | . 2 1 . 1 Core 1 | . . 1 . . Reactor . | . . . . . Propulsion 6 | . 3 1 . 2 Treads 1 | . . . . 1 Leg 5 | . 3 1 . 1 Wheel . | . . . . . Hover . | . . . . . Flight . | . . . . . Utility 6 | . 2 . . 4 Device 3 | . 1 . . 2 Storage 2 | . 1 . . 1 Processor . | . . . . . Hackware . | . . . . . Protection 1 | . . . . 1 Artifact . | . . . . . Weapon 6 | . 4 . . 2 Energy Gun . | . . . . . Energy Cannon 3 | . 2 . . 1 Ballistic Gun . | . . . . . Ballistic Cannon 1 | . 1 . . . Launcher 2 | . 1 . . 1 Special Weapon . | . . . . . Impact Weapon . | . . . . . Slashing Weapon . | . . . . . Piercing Weapon . | . . . . . Special Melee Weapon . | . . . . . Unidentified Prototypes 1 | . . . . 1 Parts Lost 5 | . . . . 5 Power . | . . . . . Propulsion 1 | . . . . 1 Utility 2 | . . . . 2 Weapon 2 | . . . . 2 Highest Loss Streak 5 | . . . . 5 To Critical Strikes . | . . . . . Average Backups 12 | . 8 12 15 15 Power 2 | . 1 2 4 3 Propulsion 2 | . 2 2 2 2 Utility 2 | . 1 3 4 4 Weapon 4 | . 3 4 5 5 Tool/Special . | . . . . . Unused Backups 20 | . 8 2 . 10 Power 4 | . 1 1 . 2 Propulsion 6 | . 4 . . 2 Utility 3 | . 1 1 . 1 Weapon 7 | . 2 . . 5 Tool/Special . | . . . . . Average Slot Usage (%) 98 | . 96 100 100 99 Engine 8 | . 14 6 . 4 Core 5 | . . 7 14 9 Leg 27 | . 28 28 28 27 Device 12 | . 10 14 14 13 Storage 14 | . 14 14 14 14 Energy Cannon 24 | . 18 28 28 27 Ballistic Cannon 2 | . 7 . . . Peak Build Rating 21 | . 9 15 15 21 Average Rating 12 | . 8 12 15 16 On Entrance 10 | 6 6 9 15 15 Avg Prop Armor Cover (%) . | . . . . . Naked Turns . | . . . . . Heaviest Build 54 | 10 32 32 32 54 Greatest Support 28 | 20 20 25 25 28 Greatest Overweight (x) 2 | . 1 1 1 2 Average Overweight (x) . | . . 1 1 1 Largest Inventory Capacity 20 | . 15 15 15 20 Average Capacity 14 | . 10 15 15 17 Most Carried 20 | . 9 15 15 20 Average Carried 12 | . 8 12 15 17 Final Capacity 20 | 8 15 15 15 20 Final Carried 15 | 6 9 15 15 15 Class Distribution -------------------- 86% | Scavenger-Mutant 13% | Mutant Dominant Class ---------------- Scavenger-Mutant | -10/Materials Scavenger-Mutant | -10/Mines Scavenger-Mutant | -10/Exiles Scavenger-Mutant | -9/Mines Resources | -11 -10 -10 -10 -9 ----------- Run | Yrd Mat Min Exi Min Matter Collected 591 | 165 314 70 . 42 Remotely . | . . . . . Salvage Created 1007 | . 387 143 . 477 Parts 66 | . 26 13 . 27 Haulers Intercepted 1 | . 1 . . . Recyclers Shooed . | . . . . . Parts Field Recycled . | . . . . . Retrieved Matter . | . . . . . Parts Self-Destructed . | . . . . . Prevented . | . . . . . Parts Restored . | . . . . . Kills | -11 -10 -10 -10 -9 ------- Run | Yrd Mat Min Exi Min Combat Hostiles Destroyed 31 | . 14 2 . 15 Cannons 24 | . 10 2 . 12 AOE 6 | . 3 . . 3 Classes Destroyed 9 | . 5 2 . 2 Worker 1 | . . 1 . . Tunneler 2 | . . 2 . . Hauler 1 | . 1 . . . Operator 2 | . 2 . . . Watcher 2 | . 2 . . . Swarmer 10 | . 6 . . 4 Grunt 18 | . 8 2 . 8 Brawler 2 | . . . . 2 Duelist 1 | . . . . 1 Best Kill Streak 6 | . 6 2 . 4 Combat Bots Only 6 | . 6 2 . 4 Max Kills in Single Turn 3 | . 2 1 . 3 Gunslinging . | . . . . . Exploded 3 | . 2 . . 3 Melee . | . . . . . Uniques/NPCs Destroyed . | . . . . . Combat | -11 -10 -10 -10 -9 -------- Run | Yrd Mat Min Exi Min Hostile Shots Fired 145 | . 64 8 . 73 Missed 38 | . 22 . . 16 Hits 107 | . 42 8 . 57 Melee 8 | . . . . 8 Projectile 99 | . 42 8 . 49 Critical Strikes 4 | . 1 . . 3 Damage Taken 1280 | . 444 91 . 745 Core 256 | . 103 11 . 142 Absorbed by Shields . | . . . . . Regen/Repaired (Parts) 26 | . 26 . . . Core Remaining (%) 100 | 100 . . . . Volleys Fired 96 | . 56 6 . 34 Largest 2 | . 2 2 . 2 Hottest 120 | . 120 120 . 120 Shots Fired 184 | . 109 12 . 63 Gun 6 | . 6 . . . Cannon 175 | . 100 12 . 63 Launcher 3 | . 3 . . . Special . | . . . . . Kinetic 63 | . 55 . . 8 Thermal 118 | . 51 12 . 55 Explosive 3 | . 3 . . . Electromagnetic . | . . . . . Robot Hit Streak 8 | . 6 4 . 8 Robot Miss Streak 4 | . 4 2 . 3 Penetration Max . | . . . . . Secondary Targets . | . . . . . Shots Hit Robots 107 | . 59 8 . 40 Core Hits 49 | . 22 5 . 22 Critical Kills 1 | . 1 . . . Critical Parts Destroyed . | . . . . . Critical Strikes 2 | . 2 . . . Meltdown 1 | . 1 . . . Blast 1 | . 1 . . . Melee Attacks . | . . . . . Impact . | . . . . . Slashing . | . . . . . Piercing . | . . . . . Sneak Attacks . | . . . . . Combat Hostiles . | . . . . . Follow-up Attacks . | . . . . . Damage Inflicted 2297 | . 1214 191 . 892 Guns 17 | . 17 . . . Cannons 1923 | . 1052 138 . 733 Explosions 243 | . 114 . . 129 Melee . | . . . . . Ramming 114 | . 31 53 . 30 Kinetic 683 | . 544 . . 139 Thermal 1386 | . 525 138 . 723 Explosive 114 | . 114 . . . Electromagnetic . | . . . . . Impact . | . . . . . Slashing . | . . . . . Piercing . | . . . . . Highest Corruption 1 | . . . . 1 Average Corruption 1 | . . . . 1 Corruption Purged . | . . . . . Corruption Blocked . | . . . . . Effects 1 | . . . . 1 Matter Fused 1 | . . . . 1 Overload Shots . | . . . . . Overflow Damage 35 | . 35 . . . Projectiles 23 | . 23 . . . Explosions 12 | . 12 . . . Melee . | . . . . . Knockbacks 6 | . 5 . . 1 Impact . | . . . . . Kinetic 6 | . 5 . . 1 Secondary . | . . . . . Self-Inflicted Damage 16 | . . . . 16 Shots 1 | . . . . 1 Rammed . | . . . . . Targets Rammed 23 | . 7 8 . 8 Kicked 23 | . 7 8 . 8 Crushed . | . . . . . Highest Temperature 225 | . 180 81 . 225 Average Temperature 70 | . 35 42 . 98 Received Heat Transfer 501 | . 195 51 . 255 Siege Activations . | . . . . . Martial Activations . | . . . . . Shielding Activations . | . . . . . Robots Disrupted . | . . . . . Combat Hostiles . | . . . . . Robots Corrupted . | . . . . . Combat Hostiles . | . . . . . Parts Fried . | . . . . . Impact Corruptions . | . . . . . Robots Melted 1 | . 1 . . . Combat Hostiles 1 | . 1 . . . Parts Melted 2 | . 1 . . 1 Heat Transferred 2814 | . 1110 296 . 1408 Parts Sabotaged . | . . . . . Parts Stolen . | . . . . . Parts Stripped . | . . . . . Power Chain Reactions . | . . . . . Alert | -11 -10 -10 -10 -9 ------- Run | Yrd Mat Min Exi Min Maximum Alert Level . | . . . . . Low Security (%) 100 | . 100 100 . 100 Level 1 . | . . . . . Level 2 . | . . . . . Level 3 . | . . . . . Level 4 . | . . . . . Level 5 . | . . . . . High Security . | . . . . . Max Security . | . . . . . Peak Influence 162 | . 162 56 . 153 Initial 2 | . . 2 . . Average 37 | . 59 5 . 41 Influence Increases 999 | . 435 123 . 441 Destroy 0b10 Robot/C 660 | . 280 80 . 300 Destroy 0b10 Robot/NC 40 | . 25 15 . . Destroy Leader 156 | . 76 20 . 60 Allied During Kill 8 | . . 8 . . Successful Hack 2 | . 2 . . . Select Force Hacks 30 | . 30 . . . Disable Machine 60 | . . . . 60 Destroy Structure 43 | . 22 . . 21 Influence Decreases 938 | . 428 130 . 380 Entered New Map 5 | . . 5 . . Time Decay 883 | . 428 125 . 330 Lost Part 50 | . . . . 50 Squads Dispatched 3 | . 3 . . . Investigation 1 | . 1 . . . Extermination . | . . . . . Reinforcement 2 | . 2 . . . Assault . | . . . . . Garrison . | . . . . . Intercept . | . . . . . Searches Triggered . | . . . . . Construction Impeded . | . . . . . Haulers Reinforced . | . . . . . Active Scanning Responses . | . . . . . Cargo Convoy Interrupts . | . . . . . Stealth | -11 -10 -10 -10 -9 --------- Run | Yrd Mat Min Exi Min Distress Signals 1 | . 1 . . . Communications Jammed . | . . . . . Distress Signals . | . . . . . Times Spotted 53 | . 32 4 . 17 Peak Tracking Total 6 | . 6 2 . 4 Tactical Retreats . | . . . . . Traps | -11 -10 -10 -10 -9 ------- Run | Yrd Mat Min Exi Min Traps Triggered 1 | . 1 . . . Indirectly . | . . . . . Trap Hack Attempts . | . . . . . Triggered . | . . . . . Disarmed . | . . . . . Reprogrammed . | . . . . . Reused . | . . . . . Traps Extracted . | . . . . . Installed . | . . . . . Triggered . | . . . . . Most Traps Carried 4 | . . . . 4 Machines | -11 -10 -10 -10 -9 ---------- Run | Yrd Mat Min Exi Min Machines Disabled 4 | . . . . 4 Max in Single Turn 3 | . . . . 3 Machines Repaired . | . . . . . Machines Dismantled . | . . . . . Machines Sabotaged . | . . . . . Overloaded Fab Kills . | . . . . . Hacking | -11 -10 -10 -10 -9 --------- Run | Yrd Mat Min Exi Min Machines Accessed 7 | . 6 . 1 . Terminals 4 | . 4 . . . Fabricators . | . . . . . Repair Stations 1 | . 1 . . . Recycling Units 1 | . 1 . . . Scanalyzers . | . . . . . Garrison Access . | . . . . . Total Hacks 15 | . 9 . 6 . Successful 12 | . 6 . 6 . Failed 3 | . 3 . . . Catastrophic . | . . . . . Database Lockouts . | . . . . . Manual 1 | . 1 . . . Terminals 6 | . 6 . . . Fabricators . | . . . . . Repair Stations 2 | . 2 . . . Recycling Units 1 | . 1 . . . Scanalyzers . | . . . . . Garrison Access . | . . . . . Terminal Hacks 9 | . 3 . 6 . Record 6 | . . . 6 . Zone Layout 3 | . 3 . . . Fabricator Hacks . | . . . . . Repair Station Hacks 2 | . 2 . . . Scan Component 1 | . 1 . . . Repair 1 | . 1 . . . Recycling Unit Hacks . | . . . . . Scanalyzer . | . . . . . Garrison Access Hacks . | . . . . . Unauthorized Hacks 1 | . 1 . . . Terminals . | . . . . . Fabricators . | . . . . . Repair Stations . | . . . . . Recycling Units 1 | . 1 . . . Tunnel 1 | . 1 . . . Scanalyzers . | . . . . . Garrison Access . | . . . . . Data Cores Recovered . | . . . . . Used . | . . . . . Hacking Detections 4 | . 4 . . . Full Trace Events . | . . . . . Feedback Events . | . . . . . Feedback Blocked . | . . . . . Robot Schematics Acquired . | . . . . . Robots Built . | . . . . . Authchips . | . . . . . Time . | . . . . . Total Robot Build Rating . | . . . . . Part Schematics Acquired . | . . . . . Parts Built . | . . . . . Authchips . | . . . . . Time . | . . . . . Total Part Build Rating . | . . . . . Part Studies Acquired . | . . . . . Parts Repaired 1 | . 1 . . . Time 38 | . 38 . . . Parts Recycled . | . . . . . Recycled Matter . | . . . . . Retrieved Matter . | . . . . . Retrieved Components . | . . . . . Parts Scanalyzed . | . . . . . Part Schematics Acquired . | . . . . . Parts Damaged . | . . . . . Bothacking | -11 -10 -10 -10 -9 ------------ Run | Yrd Mat Min Exi Min Used RIF Installer . | . . . . . Robots Hacked . | . . . . . Non-combat . | . . . . . Combat . | . . . . . Robot Hacks Applied . | . . . . . Relay Couplers Released . | . . . . . Fabnet Peak Effective % . | . . . . . Robots Rewired . | . . . . . Allies Hacked . | . . . . . Hacks Repelled . | . . . . . Allies | -11 -10 -10 -10 -9 -------- Run | Yrd Mat Min Exi Min Total Allies 2 | . . 2 . . Largest Group 2 | . . 2 1 . Highest-Rated Group 45 | . . 45 14 . Highest-Rated Ally 31 | . . 31 14 . Total Orders . | . . . . . Ally Attacks 14 | . . 14 . . Total Damage 168 | . . 168 . . Kills 2 | . . 2 . . Allies Corrupted . | . . . . . Allies Melted . | . . . . . Intel | -11 -10 -10 -10 -9 ------- Run | Yrd Mat Min Exi Min Active Infowar (turns) 2 | . . . . 2 Sensors 2 | . . . . 2 Robot Analysis Total . | . . . . . Derelict Logs Recovered 3 | . . 2 . 1 Drone Launches . | . . . . . Drone Recoveries . | . . . . . Exploration | -11 -10 -10 -10 -9 ------------- Run | Yrd Mat Min Exi Min Turns Passed 5058 | . 1741 1432 305 1580 Spaces Moved 2540 | 1 1002 700 127 710 Core . | . . . . . Treads . | . . . . . Legs 2540 | 1 1002 700 127 710 Wheels . | . . . . . Hover . | . . . . . Flight . | . . . . . Fastest Speed 120 | 120 120 190 190 190 Average Speed 173 | 120 138 190 190 202 Slowest Speed 260 | 120 190 190 190 260 Overloaded Moves . | . . . . . Propulsion Burnouts . | . . . . . Robots Hopped . | . . . . . Potential Cave-ins . | . . . . . Cave-ins Triggered . | . . . . . Exploration Rate (%) 68 | 2 98 98 49 95 Regions Visited 4 Branch Regions 3 Pre-discovered Areas 4 | . 1 2 1 . Known Exits Taken . | . . . . . Unknown Exits Taken 4 | 1 1 1 1 . Scrap Searched 2 | . . 1 . 1 Spaces Dug . | . . . . . Terrain Destroyed 52 | . 31 . . 21 Melee . | . . . . . Projectile . | . . . . . AOE 52 | . 31 . . 21 Terrain Rammed . | . . . . . Walls Destroyed . | . . . . . Machines Disabled . | . . . . . Actions | -11 -10 -10 -10 -9 --------- Run | Yrd Mat Min Exi Min Total 3012 | . 1250 785 191 786 Wait 287 | . 155 60 65 7 Move 2536 | . 1001 699 126 710 Hop . | . . . . . Pick Up 23 | . 7 6 . 10 Fast Attach 3 | . 3 . . . Attach 5 | . . . . 5 Detach 1 | . 1 . . . Swap 18 | . 9 3 . 6 Drop 20 | . 11 3 . 6 Fire 96 | . 56 6 . 34 Melee . | . . . . . Ram . | . . . . . Kick 23 | . 7 8 . 8 Crush . | . . . . . Escape Stasis . | . . . . . Rewire . | . . . . . Trap . | . . . . . Miscellaneous . | . . . . . Route ------- -11/Scrapyard -10/Materials (discovered 4 exits: [*Mat x3] / [*Min]) -10/Mines (discovered 3 exits: [*Mat x2] / *Exi) -10/Exiles -9/Mines (discovered 2 exits: [*Mat x2]) History --------- Turn | Location | Event 1 | -11/Scrapyard | Discovered new exit (range 0) 1 | -11/Scrapyard | Entered Materials 74 | -10/Materials | Discovered new exit (range 17) 318 | -10/Materials | Build established: Mutant 502 | -10/Materials | Discovered new exit (range 10) 565 | -10/Materials | Discovered new exit (range 11) 776 | -10/Materials | Build established: Scavenger-Mutant 1088 | -10/Materials | Discovered new exit (range 7) 1622 | -10/Materials | Repaired Imp. Heat Sink 1742 | -10/Materials | Entered Mines 1782 | -10/Mines | Learned location of Zion (-6) 1788 | -10/Mines | Discovered new exit (range 4) 2111 | -10/Mines | Learned 4 Materials zone layouts 2188 | -10/Mines | Found DCF Scrap (13 items) 2575 | -10/Mines | Deemed a non-threat by the Exiles lab entrance 2577 | -10/Mines | Discovered new exit (range 5) 2733 | -10/Mines | Discovered new exit (range 9) 2896 | -10/Mines | Learned location of Storage (-7) 3174 | -10/Mines | Entered Exiles 3174 | -10/Exiles | Accompanied by 1 ally 3220 | -10/Exiles | Met 8R-AWN 3252 | -10/Exiles | Met EX-HEX 3397 | -10/Exiles | Met EX-DEC 3464 | -10/Exiles | Discovered new exit (range 10) 3479 | -10/Exiles | Entered Mines 3574 | -9/Mines | Core integrity fell below 50% 3764 | -9/Mines | Found a damaged Exp. Sensor Array with a note attached 3768 | -9/Mines | Found Prototype Device 3768 | -9/Mines | Identified Exp. Sensor Array 3796 | -9/Mines | Discovered new exit (range 16) 3898 | -9/Mines | Learned Materials terminal intel 4155 | -9/Mines | Found a hidden stash of uninstalled traps 4696 | -9/Mines | Discovered new exit (range 8) 4835 | -9/Mines | Received a Rocket Launcher from a helpful Derelict 5030 | -9/Mines | Core integrity fell below 20% 5059 | -9/Mines | Destroyed by G-34 Mercenary with Small Laser Last Messages --------------- 05023_ B-36 Bruiser unfolds itself. 05023_ G-34 Mercenary unfolds itself. 05024_ Imp. Heat Sink destroyed. 05024_ System corrupted by crushing effect (+1). 05030_ System corrupted: Matter fused (-7). 05033_ Imp. Aluminum Leg destroyed. 05033_ Beam Cannon destroyed. 05040_ B-36 Bruiser heat spikes uncontrollably. 05041_ B-36 Bruiser heat short circuits Lgt. Treads. 05041_ Imp. Heat Sink destroyed. 05041_ B-36 Bruiser overheating. 05041_ Melted Lgt. Treads. 05042_ B-36 Bruiser overheating. 05044_ B-36 Bruiser knocked back. 05045_ B-36 Bruiser overheating. 05048_ K-01 Serf collects debris. 05048_ B-36 Bruiser overheating. 05049_ K-01 Serf destroyed. 05049_ B-36 Bruiser overheating. 05056_ B-36 Bruiser destroyed. Map ----- +----------------------------------------------------+ | ###??# ##???#/## ##??????????# #??# """ """ | | ##?# ####### # #??????????# ##?# """ """ | | ### % #??????????# ### | | #????####??# ## """ """ | | ########] ####### ##?# ## """ """ | | ##?????##### ##?# ### ## """ """ | | ####??????# #??# ## ## ## | | # ##?????# #??# ## # """ """ | | # ##????# #??# ### """ # """ """ | | #????# #??# #?## """ # """ "" | | ## #????# #### #??## """ # | | #### #????# #???## ########%## | | ##??## #????########????###### #??????# #? | | ##????## #?????????????????????# #??????# #? | | #??????# #?????????????????????# #??????#!#? | | #??????# #?????????############# ########%#? | | #?????## ##?????????# =* % *#? | | #????## ########???# #####################? | | #????# #???# #????????????????????? | | #????# ######*#???# #?#####??????????????? | | #????#### ##????# ##### #?# #??????????????? | | #???????####?????#!%**##% #?# #??????????????? | | #????????????????#### ##gg#?# #??????????????? | | ###???????????????????# ##%=### ##?????????????? | | ?????????####?????##### # =%## ####??????????? | | #???????## #####?# @ % #??????????? | | #???????# ### r ##??????????? | | #??????## ##### #t ####???????????? | | #?????## % #???## ### #??????????????? | | ####### #####????####?# ###### #?????? | | #?????????????# #?????? | | < ##?????????????# #?????? | | ##### ##??????????????# ####### #????? | | ???# ##???????????????# #????????? #????? | | ???# #?###########????# #???????????????? | | ??## #### ## ###### ####????????????? | | ### ## ##?# #????????????? | | # ######??# ######### #????????????? | | ##??????# ###???????# #????????????? | | ##?????# ## ##?????????# #????????????? | | #?????# ### ##??????????# ######### #? | | # #?????# #?###???????????# #? | | ## #?????# #???????????????##############?? | | ## #?????# #??????????????????????????????? | | ## % #?????# #??????????????????????????????? | | ## ##?????# #??????????????????????????????? | | ##??????# ###????????????????????????????? | | ## ###???????# ####?????????????????????????? | | #####?????????# ##????????????????????????? | | #?????????????# !#????????????????????????? | +----------------------------------------------------+ Best States ------------- Heat Dissipation 39 Energy Generation 14 Energy Capacity 265 Matter Stores 300 Matter Capacity 300 Sight Range 16 Robot Scan Range 20 Terrain Scan Density 10 Armor Coverage 150 Evasion (%) 55 Recoil Reduction 1 Item Schematics ----------------- None Robot Schematics ------------------ None Fabricated ------------ Nothing Repaired ---------- Imp. Heat Sink | 35% | -10/Materials Studied --------- None Alien Tech Used ----------------- None Achievements -------------- None Challenges ------------ None Game ------ Seed AssaultGyrokineticThrower Manual? 0 Play Time 00:20:55 Cumulative 254.0 hours Start 2026.01.02 @ 13:33:27 End 2026.01.02 @ 13:53:06 Sessions 1 Manual Loads 0 Difficulty Rogue Special Mode None Game No. 331 Rogue 330 Adventurer 1 Explorer 0 Win Type - Total 2 Types 1/0/0/1/0/0/0/0/0/0 Lore% 72 Gallery% 66 Achievement% 55 Wizard Run 0 Options --------- Layout 0 ASCII 0 Keyboard 0 Movement Numpad Keybinds 0 Fullscreen 1 Font 24/Smallcaps Map View 76x50 Zoom Use 0% Tactical HUD 1 Map Filters NONE Filters NONE Steam 1 RUN: 689d256d-1865-469a-9b65-41f3d36e1a04